[Event "*** SCC Grand Prix: Titled Tuesday Blitz"]
[Site "Chess.com"]
[Date "2020.06.23"]
[Round "8"]
[White "PawnEatingZombie"]
[Black "diamonds13"]
[Result "0-1"]
[WhiteElo "2097"]
[BlackElo "2258"]
[TimeControl "180+1"]
[EndTime "11:36:01 PDT"]
[Termination "diamonds13 won on time"]

1. d4 {[%clk 0:03:00.9]} 1... Nf6 {[%clk 0:02:59]} 2. c4 {[%clk 0:02:59.6]} 2...
e6 {[%clk 0:02:59.1]} 3. Nc3 {[%clk 0:02:59.2]} 3... Bb4 {[%clk 0:02:57.7]} 4.
Qc2 {[%clk 0:02:59.6]} 4... O-O {[%clk 0:02:56.5]} 5. e4 {[%clk 0:02:58.8]} 5...
d5 {[%clk 0:02:55.2]} 6. e5 {[%clk 0:02:58.9]} 6... Ne4 {[%clk 0:02:53.6]} 7.
Bd3 {[%clk 0:02:59.4]} 7... c5 {[%clk 0:02:52.3]} 8. Nf3 {[%clk 0:03:00]} 8...
cxd4 {[%clk 0:02:47.9]} 9. Nxd4 {[%clk 0:03:00.9]} 9... Nc6 {[%clk 0:02:46.6]}
10. Nxc6 {[%clk 0:02:58.4]} 10... bxc6 {[%clk 0:02:44]} 11. O-O {[%clk
0:02:57.6]} 11... Bxc3 {[%clk 0:02:40.9]} 12. bxc3 {[%clk 0:02:51.7]} 12... f5
{[%clk 0:02:40.3]} 13. exf6 {[%clk 0:02:41.3]} 13... Nxf6 {[%clk 0:02:38.9]} 14.
Bg5 {[%clk 0:02:28.8]} 14... Qc7 {[%clk 0:02:35.6]} 15. Bxf6 {[%clk 0:02:19]}
15... Rxf6 {[%clk 0:02:25.5]} 16. Bxh7+ {[%clk 0:02:18.3]} 16... Kh8 {[%clk
0:02:25.5]} 17. Bd3 {[%clk 0:02:12.6]} 17... e5 {[%clk 0:02:25.1]} 18. Rfe1
{[%clk 0:01:51.7]} 18... e4 {[%clk 0:02:24]} 19. Bf1 {[%clk 0:01:49.3]} 19...
Rh6 {[%clk 0:02:16.5]} 20. g3 {[%clk 0:01:48.4]} 20... Bg4 {[%clk 0:02:08.7]}
21. Bg2 {[%clk 0:01:47.3]} 21... Rf8 {[%clk 0:02:06.7]} 22. Qd2 {[%clk
0:01:29.2]} 22... Qf7 {[%clk 0:02:03.1]} 23. cxd5 {[%clk 0:01:01.4]} 23... cxd5
{[%clk 0:02:00.7]} 24. Qd4 {[%clk 0:01:01.4]} 24... Qh5 {[%clk 0:01:55.9]} 25.
h4 {[%clk 0:00:59.9]} 25... Rhf6 {[%clk 0:01:53.1]} 26. c4 {[%clk 0:00:41.5]}
26... Rxf2 {[%clk 0:01:31.5]} 27. Qxf2 {[%clk 0:00:35.7]} 27... Rxf2 {[%clk
0:01:29.2]} 28. Kxf2 {[%clk 0:00:36.6]} 28... Bf3 {[%clk 0:01:25.8]} 29. cxd5
{[%clk 0:00:31.3]} 29... Qxd5 {[%clk 0:01:23.4]} 30. Bxf3 {[%clk 0:00:21]} 30...
exf3 {[%clk 0:01:08.6]} 31. Rad1 {[%clk 0:00:21.3]} 31... Qxa2+ {[%clk
0:01:03.3]} 32. Kxf3 {[%clk 0:00:20.9]} 32... a5 {[%clk 0:00:59.6]} 33. Re8+
{[%clk 0:00:20.1]} 33... Kh7 {[%clk 0:00:59.5]} 34. Rdd8 {[%clk 0:00:20.5]}
34... Qb3+ {[%clk 0:00:57.3]} 35. Kg4 {[%clk 0:00:17.5]} 35... Qc4+ {[%clk
0:00:54.5]} 36. Kh3 {[%clk 0:00:16.1]} 36... Qb5 {[%clk 0:00:49.9]} 37. Rh8+
{[%clk 0:00:12.7]} 37... Kg6 {[%clk 0:00:49.9]} 38. Rd6+ {[%clk 0:00:11.6]}
38... Kf7 {[%clk 0:00:46.2]} 39. Rhd8 {[%clk 0:00:10.2]} 39... a4 {[%clk
0:00:42.4]} 40. R6d7+ {[%clk 0:00:06.3]} 40... Kg6 {[%clk 0:00:41.4]} 41. Rd6+
{[%clk 0:00:04.8]} 41... Kh7 {[%clk 0:00:40.9]} 42. Rd5 {[%clk 0:00:01.3]} 42...
Qf1+ {[%clk 0:00:38.1]} 43. Kg4 {[%clk 0:00:01.9]} 43... Qe2+ {[%clk 0:00:36.6]}
44. Kh3 {[%clk 0:00:01.5]} 44... Qe6+ {[%clk 0:00:34.3]} 45. g4 {[%clk
0:00:01.9]} 45... Qe3+ {[%clk 0:00:31.6]} 46. Kg2 {[%clk 0:00:02]} 46... Qe4+
{[%clk 0:00:30.6]} 47. Kg3 {[%clk 0:00:01.9]} 47... Qe1+ {[%clk 0:00:26.1]} 48.
Kh3 {[%clk 0:00:01.7]} 48... Qf1+ {[%clk 0:00:23.4]} 49. Kg3 {[%clk 0:00:01.9]}
49... Qg1+ {[%clk 0:00:20.8]} 50. Kf4 {[%clk 0:00:02.1]} 50... Kg6 {[%clk
0:00:20.3]} 51. h5+ {[%clk 0:00:01.7]} 51... Kf7 {[%clk 0:00:19.9]} 52. R5d6
{[%clk 0:00:02.1]} 52... Qf2+ {[%clk 0:00:18.5]} 53. Kg5 {[%clk 0:00:02.4]}
53... Qe3+ {[%clk 0:00:18.1]} 54. Kh4 {[%clk 0:00:02.2]} 54... Qe7+ {[%clk
0:00:18]} 55. Kg3 {[%clk 0:00:02.1]} 55... Qe5+ {[%clk 0:00:17.8]} 0-1

[Event "*** SCC Grand Prix: Titled Tuesday Blitz"]
[Site "Chess.com"]
[Date "2020.06.23"]
[Round "8"]
[White "Oleksandr_Bortnyk"]
[Black "amintabatabaei"]
[Result "1-0"]
[WhiteElo "2914"]
[BlackElo "2822"]
[TimeControl "180+1"]
[EndTime "11:36:02 PDT"]
[Termination "Oleksandr_Bortnyk won on time"]

1. e4 {[%clk 0:03:00.9]} 1... c5 {[%clk 0:02:58.1]} 2. c3 {[%clk 0:02:57.8]}
2... Nf6 {[%clk 0:02:55.4]} 3. e5 {[%clk 0:02:52.7]} 3... Nd5 {[%clk 0:02:55.7]}
4. d4 {[%clk 0:02:53.6]} 4... cxd4 {[%clk 0:02:56.1]} 5. Nf3 {[%clk 0:02:54.5]}
5... e6 {[%clk 0:02:56]} 6. cxd4 {[%clk 0:02:53.7]} 6... d6 {[%clk 0:02:56.6]}
7. Bc4 {[%clk 0:02:52.5]} 7... Be7 {[%clk 0:02:56.5]} 8. O-O {[%clk 0:02:52.2]}
8... O-O {[%clk 0:02:56.9]} 9. Qe2 {[%clk 0:02:52.7]} 9... b6 {[%clk 0:02:57.4]}
10. Rd1 {[%clk 0:02:33.8]} 10... Bb7 {[%clk 0:02:56.5]} 11. a3 {[%clk
0:02:13.8]} 11... Nd7 {[%clk 0:02:50.5]} 12. Bb3 {[%clk 0:02:00.5]} 12... Rc8
{[%clk 0:02:40.9]} 13. Nbd2 {[%clk 0:01:57.4]} 13... dxe5 {[%clk 0:02:37.8]} 14.
dxe5 {[%clk 0:01:53.7]} 14... Nc5 {[%clk 0:02:38]} 15. Bc4 {[%clk 0:01:48.4]}
15... Qc7 {[%clk 0:02:14.2]} 16. Nf1 {[%clk 0:01:45.6]} 16... Rfd8 {[%clk
0:01:52]} 17. Bd2 {[%clk 0:01:28.3]} 17... Ne4 {[%clk 0:01:13.6]} 18. Rac1
{[%clk 0:00:28.4]} 18... Nxd2 {[%clk 0:01:12.7]} 19. Bxd5 {[%clk 0:00:26.2]}
19... Nxf3+ {[%clk 0:01:12.6]} 20. Qxf3 {[%clk 0:00:26]} 20... Bxd5 {[%clk
0:00:46.7]} 21. Rxc7 {[%clk 0:00:25.9]} 21... Bxf3 {[%clk 0:00:46.4]} 22. Rxd8+
{[%clk 0:00:26.2]} 22... Rxd8 {[%clk 0:00:46.8]} 23. Rxe7 {[%clk 0:00:27.1]}
23... Be2 {[%clk 0:00:20.8]} 24. Rxa7 {[%clk 0:00:25.7]} 24... h5 {[%clk
0:00:13.7]} 25. Ne3 {[%clk 0:00:25.8]} 25... Rd2 {[%clk 0:00:14.2]} 26. b4
{[%clk 0:00:24.4]} 26... b5 {[%clk 0:00:10.5]} 27. h3 {[%clk 0:00:05.8]} 27...
Ra2 {[%clk 0:00:09.7]} 28. h4 {[%clk 0:00:05.3]} 28... g6 {[%clk 0:00:05.7]} 29.
Kh2 {[%clk 0:00:05.4]} 29... Kg7 {[%clk 0:00:06]} 30. Kg3 {[%clk 0:00:06.3]}
30... Bd3 {[%clk 0:00:06.4]} 31. f3 {[%clk 0:00:06.1]} 31... Be2 {[%clk
0:00:05.9]} 32. Kf4 {[%clk 0:00:06.4]} 32... Bf1 {[%clk 0:00:05.8]} 33. g4
{[%clk 0:00:06]} 33... Be2 {[%clk 0:00:03]} 34. gxh5 {[%clk 0:00:03.8]} 34...
gxh5 {[%clk 0:00:03.9]} 35. Ke4 {[%clk 0:00:03.2]} 35... Ra1 {[%clk 0:00:03.8]}
36. f4 {[%clk 0:00:03.3]} 36... Rh1 {[%clk 0:00:03.7]} 37. a4 {[%clk 0:00:02.6]}
37... bxa4 {[%clk 0:00:03.5]} 38. Rxa4 {[%clk 0:00:03.5]} 38... Rxh4 {[%clk
0:00:04]} 39. Ra2 {[%clk 0:00:04.1]} 39... Bb5 {[%clk 0:00:04.4]} 40. Rf2 {[%clk
0:00:02.9]} 40... Rh1 {[%clk 0:00:03.2]} 41. Kd4 {[%clk 0:00:03.2]} 41... h4
{[%clk 0:00:03.7]} 42. f5 {[%clk 0:00:02.9]} 42... h3 {[%clk 0:00:03.3]} 43. Kc5
{[%clk 0:00:03]} 43... Bd3 {[%clk 0:00:02.9]} 44. fxe6 {[%clk 0:00:03.2]} 44...
fxe6 {[%clk 0:00:03.8]} 45. Kd6 {[%clk 0:00:01.9]} 45... h2 {[%clk 0:00:02.5]}
46. Rg2+ {[%clk 0:00:01.9]} 46... Kf7 {[%clk 0:00:02.5]} 47. Ng4 {[%clk
0:00:02]} 1-0

[Event "*** SCC Grand Prix: Titled Tuesday Blitz"]
[Site "Chess.com"]
[Date "2020.06.23"]
[Round "8"]
[White "Zq1"]
[Black "Alindsay211"]
[Result "1-0"]
[WhiteElo "2507"]
[BlackElo "2309"]
[TimeControl "180+1"]
[EndTime "11:36:03 PDT"]
[Termination "Zq1 won on time"]

1. d4 {[%clk 0:03:00.9]} 1... Nf6 {[%clk 0:02:56.5]} 2. c4 {[%clk 0:03:00.9]}
2... g6 {[%clk 0:02:56.2]} 3. Nc3 {[%clk 0:03:00.2]} 3... Bg7 {[%clk 0:02:56.3]}
4. e4 {[%clk 0:02:59.6]} 4... d6 {[%clk 0:02:56.5]} 5. Nf3 {[%clk 0:02:59.1]}
5... O-O {[%clk 0:02:56.4]} 6. Be2 {[%clk 0:02:59.3]} 6... e5 {[%clk 0:02:56.4]}
7. O-O {[%clk 0:02:59.2]} 7... exd4 {[%clk 0:02:45.8]} 8. Nxd4 {[%clk
0:02:58.5]} 8... Nc6 {[%clk 0:02:44.8]} 9. Be3 {[%clk 0:02:55.8]} 9... Re8
{[%clk 0:02:42.1]} 10. f3 {[%clk 0:02:55.7]} 10... Nh5 {[%clk 0:02:35]} 11. Qd2
{[%clk 0:02:55.1]} 11... Bd7 {[%clk 0:02:33.3]} 12. Rad1 {[%clk 0:02:53.6]}
12... Nxd4 {[%clk 0:02:26.5]} 13. Bxd4 {[%clk 0:02:52.9]} 13... Bxd4+ {[%clk
0:02:25.9]} 14. Qxd4 {[%clk 0:02:52.3]} 14... Qf6 {[%clk 0:02:26.3]} 15. Nd5
{[%clk 0:02:45.9]} 15... Qxd4+ {[%clk 0:02:22.8]} 16. Rxd4 {[%clk 0:02:45.2]}
16... Rac8 {[%clk 0:02:19]} 17. g4 {[%clk 0:02:44.1]} 17... c6 {[%clk
0:02:03.5]} 18. gxh5 {[%clk 0:02:42.3]} 18... cxd5 {[%clk 0:02:03.7]} 19. Rxd5
{[%clk 0:02:38.9]} 19... Be6 {[%clk 0:02:01.6]} 20. Rd4 {[%clk 0:02:29.7]} 20...
Rc5 {[%clk 0:01:47.5]} 21. hxg6 {[%clk 0:02:24]} 21... hxg6 {[%clk 0:01:48.4]}
22. Rfd1 {[%clk 0:02:20.5]} 22... Kg7 {[%clk 0:01:46]} 23. b3 {[%clk 0:02:18]}
23... Rh8 {[%clk 0:01:43.9]} 24. f4 {[%clk 0:02:10.1]} 24... Rh4 {[%clk
0:01:36.9]} 25. Rf1 {[%clk 0:02:09.3]} 25... Bg4 {[%clk 0:01:21.4]} 26. Bxg4
{[%clk 0:01:44.1]} 26... Rxg4+ {[%clk 0:01:22.3]} 27. Kh1 {[%clk 0:01:42.7]}
27... Rh5 {[%clk 0:01:00.5]} 28. Rxd6 {[%clk 0:01:39.1]} 28... Rhh4 {[%clk
0:01:00.2]} 29. Rd7 {[%clk 0:01:34.4]} 29... Rxf4 {[%clk 0:00:57]} 30. Rxf4
{[%clk 0:01:32.9]} 30... Rxf4 {[%clk 0:00:57.9]} 31. Rxb7 {[%clk 0:01:31.6]}
31... Rxe4 {[%clk 0:00:57.4]} 32. Rxa7 {[%clk 0:01:31.2]} 32... g5 {[%clk
0:00:56.5]} 33. Rb7 {[%clk 0:01:22.6]} 33... Re1+ {[%clk 0:00:55.4]} 34. Kg2
{[%clk 0:01:20.8]} 34... Re2+ {[%clk 0:00:56.3]} 35. Kg3 {[%clk 0:01:20]} 35...
Rxa2 {[%clk 0:00:57.2]} 36. c5 {[%clk 0:01:19.7]} 36... Kf6 {[%clk 0:00:53]} 37.
c6 {[%clk 0:01:18]} 37... Rc2 {[%clk 0:00:49.3]} 38. c7 {[%clk 0:01:14.9]} 38...
Ke6 {[%clk 0:00:48.3]} 39. b4 {[%clk 0:01:14.2]} 39... Kd7 {[%clk 0:00:47.4]}
40. b5 {[%clk 0:01:14.2]} 40... Kc8 {[%clk 0:00:32.3]} 41. Ra7 {[%clk
0:01:13.3]} 41... Rb2 {[%clk 0:00:30.3]} 42. Ra8+ {[%clk 0:01:05.7]} 42... Kxc7
{[%clk 0:00:29.7]} 43. Ra7+ {[%clk 0:01:06]} 43... Kd6 {[%clk 0:00:23.4]} 44.
Rxf7 {[%clk 0:01:05.6]} 44... Rxb5 {[%clk 0:00:23.1]} 45. Kg4 {[%clk 0:01:05]}
45... Ke6 {[%clk 0:00:23.3]} 46. Rf8 {[%clk 0:01:03.7]} 46... Ke7 {[%clk
0:00:23.1]} 47. Rf1 {[%clk 0:01:01.6]} 47... Ke6 {[%clk 0:00:20.7]} 48. h3
{[%clk 0:01:01.8]} 48... Ke7 {[%clk 0:00:20.7]} 49. Rf3 {[%clk 0:00:59.6]} 49...
Ke6 {[%clk 0:00:20.3]} 50. Kh5 {[%clk 0:00:59.8]} 50... Ke7 {[%clk 0:00:18.6]}
51. Kg6 {[%clk 0:00:58.3]} 51... Ke8 {[%clk 0:00:18.3]} 52. Kg7 {[%clk
0:00:52.6]} 52... Re5 {[%clk 0:00:16.7]} 53. Ra3 {[%clk 0:00:46.2]} 53... Ke7
{[%clk 0:00:14.7]} 54. Kg6 {[%clk 0:00:44.6]} 54... Rb5 {[%clk 0:00:13.2]} 55.
Re3+ {[%clk 0:00:43.1]} 55... Kf8 {[%clk 0:00:12.1]} 56. Ra3 {[%clk 0:00:42.7]}
56... Ke7 {[%clk 0:00:11.6]} 57. Ra7+ {[%clk 0:00:41.9]} 57... Kf8 {[%clk
0:00:09.7]} 58. Ra8+ {[%clk 0:00:41.8]} 58... Ke7 {[%clk 0:00:09.8]} 59. Rh8
{[%clk 0:00:41.4]} 59... Ra5 {[%clk 0:00:06.2]} 60. Rh5 {[%clk 0:00:40.1]} 60...
Rb5 {[%clk 0:00:05.2]} 61. Kg7 {[%clk 0:00:36.4]} 61... Ra5 {[%clk 0:00:04.8]}
62. h4 {[%clk 0:00:36]} 62... Ke8 {[%clk 0:00:01.6]} 63. hxg5 {[%clk 0:00:34.3]}
63... Ra7+ {[%clk 0:00:01.6]} 64. Kg8 {[%clk 0:00:32.8]} 64... Ke7 {[%clk
0:00:01.8]} 65. Rh7+ {[%clk 0:00:32.6]} 1-0

[Event "*** SCC Grand Prix: Titled Tuesday Blitz"]
[Site "Chess.com"]
[Date "2020.06.23"]
[Round "8"]
[White "Kislov_Oleg"]
[Black "grandcoach"]
[Result "1-0"]
[WhiteElo "2380"]
[BlackElo "2104"]
[TimeControl "180+1"]
[EndTime "11:36:07 PDT"]
[Termination "Kislov_Oleg won on time"]

1. e4 {[%clk 0:03:00.9]} 1... c5 {[%clk 0:02:56.3]} 2. Nf3 {[%clk 0:03:00.7]}
2... Nc6 {[%clk 0:02:55.8]} 3. c3 {[%clk 0:03:01.1]} 3... Nf6 {[%clk 0:02:50.8]}
4. e5 {[%clk 0:03:00.9]} 4... Nd5 {[%clk 0:02:51.2]} 5. d4 {[%clk 0:03:00.9]}
5... cxd4 {[%clk 0:02:51.6]} 6. cxd4 {[%clk 0:03:00.8]} 6... d6 {[%clk
0:02:51.5]} 7. Bc4 {[%clk 0:03:00.4]} 7... dxe5 {[%clk 0:02:52]} 8. dxe5 {[%clk
0:02:57.2]} 8... Ndb4 {[%clk 0:02:50.6]} 9. Qxd8+ {[%clk 0:02:51.8]} 9... Nxd8
{[%clk 0:02:49.5]} 10. Na3 {[%clk 0:02:42.2]} 10... Be6 {[%clk 0:02:39.5]} 11.
Ke2 {[%clk 0:02:33]} 11... Bxc4+ {[%clk 0:02:34.6]} 12. Nxc4 {[%clk 0:02:32.8]}
12... Rc8 {[%clk 0:02:35.1]} 13. b3 {[%clk 0:02:30.3]} 13... b5 {[%clk 0:02:28]}
14. Bd2 {[%clk 0:02:21.9]} 14... e6 {[%clk 0:02:24.5]} 15. Nd6+ {[%clk
0:02:07.1]} 15... Bxd6 {[%clk 0:02:20.4]} 16. exd6 {[%clk 0:02:06.5]} 16... Nbc6
{[%clk 0:01:59.8]} 17. Be3 {[%clk 0:01:52.2]} 17... Nb7 {[%clk 0:01:54.3]} 18.
Rhd1 {[%clk 0:01:48.8]} 18... Kd7 {[%clk 0:01:52.1]} 19. b4 {[%clk 0:01:48]}
19... f6 {[%clk 0:01:50.2]} 20. Bc5 {[%clk 0:01:47]} 20... a5 {[%clk 0:01:48.6]}
21. a3 {[%clk 0:01:46.3]} 21... e5 {[%clk 0:01:32.9]} 22. Ke3 {[%clk 0:01:43.4]}
22... Rhd8 {[%clk 0:01:27.4]} 23. Nd2 {[%clk 0:01:35.8]} 23... Nd4 {[%clk
0:01:10.1]} 24. Ne4 {[%clk 0:01:27]} 24... Nc2+ {[%clk 0:01:08.4]} 25. Kd3
{[%clk 0:01:21.9]} 25... Nxa1 {[%clk 0:01:08.7]} 26. Rxa1 {[%clk 0:01:21.6]}
26... Ke6 {[%clk 0:01:06.1]} 27. g4 {[%clk 0:01:15]} 27... Rc6 {[%clk
0:00:48.7]} 28. f3 {[%clk 0:01:04.8]} 28... g6 {[%clk 0:00:47.2]} 29. Ke3 {[%clk
0:01:00.5]} 29... Nxd6 {[%clk 0:00:41.4]} 30. Nxd6 {[%clk 0:00:51.3]} 30...
Rdxd6 {[%clk 0:00:41.1]} 31. Bxd6 {[%clk 0:00:51.5]} 31... Rxd6 {[%clk
0:00:36.9]} 32. bxa5 {[%clk 0:00:31.7]} 32... Ra6 {[%clk 0:00:35.8]} 33. Rd1
{[%clk 0:00:30.4]} 33... Rxa5 {[%clk 0:00:35.8]} 34. Rd3 {[%clk 0:00:30.3]}
34... f5 {[%clk 0:00:30.1]} 35. gxf5+ {[%clk 0:00:29.1]} 35... gxf5 {[%clk
0:00:31]} 36. Rc3 {[%clk 0:00:24.8]} 36... Ra6 {[%clk 0:00:28.6]} 37. Rb3 {[%clk
0:00:24.2]} 37... Rb6 {[%clk 0:00:25.9]} 38. a4 {[%clk 0:00:22.8]} 38... b4
{[%clk 0:00:23.5]} 39. a5 {[%clk 0:00:23.3]} 39... Ra6 {[%clk 0:00:20.3]} 40.
Rxb4 {[%clk 0:00:23.8]} 40... Rxa5 {[%clk 0:00:20.9]} 41. Rb6+ {[%clk
0:00:24.1]} 41... Kd5 {[%clk 0:00:20.4]} 42. Rb7 {[%clk 0:00:20.5]} 42... Ra3+
{[%clk 0:00:20.1]} 43. Kf2 {[%clk 0:00:20.3]} 43... Ra2+ {[%clk 0:00:19.3]} 44.
Kg3 {[%clk 0:00:17.7]} 44... f4+ {[%clk 0:00:19.4]} 45. Kh3 {[%clk 0:00:18.2]}
45... Kd4 {[%clk 0:00:18.3]} 46. Rxh7 {[%clk 0:00:17.2]} 46... Ke3 {[%clk
0:00:17.6]} 47. Kg4 {[%clk 0:00:17.6]} 47... Rg2+ {[%clk 0:00:16.6]} 48. Kf5
{[%clk 0:00:17.9]} 48... Kxf3 {[%clk 0:00:15.2]} 49. Kxe5 {[%clk 0:00:18.3]}
49... Rg5+ {[%clk 0:00:14.7]} 50. Kf6 {[%clk 0:00:18.2]} 50... Rc5 {[%clk
0:00:13]} 51. h4 {[%clk 0:00:18.3]} 51... Kg3 {[%clk 0:00:08.6]} 52. h5 {[%clk
0:00:17.6]} 52... f3 {[%clk 0:00:08.6]} 53. Kg6 {[%clk 0:00:18.1]} 53... f2
{[%clk 0:00:08.4]} 54. Rf7 {[%clk 0:00:18.7]} 54... Rc6+ {[%clk 0:00:02.6]} 55.
Kg7 {[%clk 0:00:18.2]} 1-0

[Event "*** SCC Grand Prix: Titled Tuesday Blitz"]
[Site "Chess.com"]
[Date "2020.06.23"]
[Round "8"]
[White "LedakovAlexandr"]
[Black "Ekka83"]
[Result "1-0"]
[WhiteElo "2465"]
[BlackElo "2344"]
[TimeControl "180+1"]
[EndTime "11:36:08 PDT"]
[Termination "LedakovAlexandr won by checkmate"]

1. d4 {[%clk 0:03:00.9]} 1... d5 {[%clk 0:02:58.7]} 2. Nf3 {[%clk 0:03:00.7]}
2... Nf6 {[%clk 0:02:58.1]} 3. c4 {[%clk 0:03:01.2]} 3... e6 {[%clk 0:02:57.8]}
4. g3 {[%clk 0:03:00.9]} 4... dxc4 {[%clk 0:02:53.3]} 5. Bg2 {[%clk 0:02:59.6]}
5... a6 {[%clk 0:02:52.7]} 6. a4 {[%clk 0:02:56.4]} 6... c6 {[%clk 0:02:52.2]}
7. a5 {[%clk 0:02:53.6]} 7... Bb4+ {[%clk 0:02:50]} 8. Bd2 {[%clk 0:02:53.2]}
8... c5 {[%clk 0:02:46.8]} 9. O-O {[%clk 0:02:48]} 9... O-O {[%clk 0:02:45.3]}
10. Bxb4 {[%clk 0:02:31.8]} 10... cxb4 {[%clk 0:02:46.2]} 11. Nbd2 {[%clk
0:02:31.8]} 11... c3 {[%clk 0:02:28.7]} 12. bxc3 {[%clk 0:02:31.2]} 12... bxc3
{[%clk 0:02:29.6]} 13. Nc4 {[%clk 0:02:31.1]} 13... Nc6 {[%clk 0:02:26.7]} 14.
e3 {[%clk 0:02:21.9]} 14... Bd7 {[%clk 0:01:41.7]} 15. Qb3 {[%clk 0:02:15.6]}
15... Rb8 {[%clk 0:01:40.1]} 16. Qxc3 {[%clk 0:02:10.2]} 16... Ne7 {[%clk
0:01:37.4]} 17. Nfe5 {[%clk 0:01:59.4]} 17... Bb5 {[%clk 0:01:33.7]} 18. Rfc1
{[%clk 0:01:59.8]} 18... Nfd5 {[%clk 0:01:28.5]} 19. Qd2 {[%clk 0:01:52.8]}
19... Rc8 {[%clk 0:01:23.2]} 20. Na3 {[%clk 0:01:49.9]} 20... Rxc1+ {[%clk
0:01:20.2]} 21. Rxc1 {[%clk 0:01:50.8]} 21... Ba4 {[%clk 0:01:07.8]} 22. e4
{[%clk 0:01:43.8]} 22... Nf6 {[%clk 0:01:01.2]} 23. Qb4 {[%clk 0:01:33.6]} 23...
Bc6 {[%clk 0:00:59.2]} 24. f3 {[%clk 0:01:29.8]} 24... Be8 {[%clk 0:00:29.7]}
25. Qd2 {[%clk 0:01:12.7]} 25... Nc6 {[%clk 0:00:28.5]} 26. Nxc6 {[%clk
0:01:12.6]} 26... Bxc6 {[%clk 0:00:27.8]} 27. Nc4 {[%clk 0:01:13]} 27... Bb5
{[%clk 0:00:23.4]} 28. Ne5 {[%clk 0:01:02.3]} 28... Nd7 {[%clk 0:00:22.5]} 29.
Nc4 {[%clk 0:00:56.9]} 29... Nb8 {[%clk 0:00:20.1]} 30. Nb6 {[%clk 0:00:41.5]}
30... Nc6 {[%clk 0:00:19.4]} 31. d5 {[%clk 0:00:40.2]} 31... exd5 {[%clk
0:00:18.3]} 32. exd5 {[%clk 0:00:40.7]} 32... h6 {[%clk 0:00:16.1]} 33. h3
{[%clk 0:00:35.5]} 33... Ne7 {[%clk 0:00:15.5]} 34. Kh2 {[%clk 0:00:31.2]} 34...
Qd6 {[%clk 0:00:14.7]} 35. f4 {[%clk 0:00:25.5]} 35... Nf5 {[%clk 0:00:14.5]}
36. Qc2 {[%clk 0:00:20.6]} 36... Qg6 {[%clk 0:00:13.7]} 37. g4 {[%clk
0:00:18.6]} 37... Nh4 {[%clk 0:00:11.7]} 38. Qxg6 {[%clk 0:00:19.1]} 38... Nxg6
{[%clk 0:00:12.6]} 39. Kg3 {[%clk 0:00:18.8]} 39... f5 {[%clk 0:00:12.8]} 40. d6
{[%clk 0:00:16.7]} 40... fxg4 {[%clk 0:00:12.8]} 41. Bd5+ {[%clk 0:00:14.8]}
41... Kh8 {[%clk 0:00:12.1]} 42. d7 {[%clk 0:00:15.2]} 42... Nxf4 {[%clk
0:00:11.6]} 43. Rc8 {[%clk 0:00:13.5]} 43... Bxd7 {[%clk 0:00:07.7]} 44. Rxf8+
{[%clk 0:00:12.6]} 44... Kh7 {[%clk 0:00:08.6]} 45. Rxf4 {[%clk 0:00:11.1]}
45... gxh3 {[%clk 0:00:06.4]} 46. Nxd7 {[%clk 0:00:10.2]} 46... g5 {[%clk
0:00:07.3]} 47. Rf7+ {[%clk 0:00:09.3]} 47... Kg6 {[%clk 0:00:08.2]} 48. Ne5+
{[%clk 0:00:08.4]} 48... Kh5 {[%clk 0:00:09.1]} 49. Bf3+ {[%clk 0:00:08]} 49...
g4 {[%clk 0:00:07.9]} 50. Rf5# {[%clk 0:00:08.6]} 1-0